Department family,Entity,Date,Expense type,Expense area,Supplier,Transaction number,Amount,VAT registration number
Department of Health,University Hospitals of Morecambe Bay NHS Foundation Trust,01-Apr-11,Rates,Estates & Facilities,BOROUGH OF BARROW-IN-FURNESS,729612,64846,
Department of Health,University Hospitals of Morecambe Bay NHS Foundation Trust,01-Apr-11,Rates,Estates & Facilities,LANCASTER CITY COUNCIL,729580,55857,
Department of Health,University Hospitals of Morecambe Bay NHS Foundation Trust,01-Apr-11,Drugs,Pharmacy,ROCHE PRODUCTS LTD,723289,40515.67,
Department of Health,University Hospitals of Morecambe Bay NHS Foundation Trust,01-Apr-11,Rates,Estates & Facilities,SOUTH LAKELAND DISTRICT COUNCIL,729653,38320,
Department of Health,University Hospitals of Morecambe Bay NHS Foundation Trust,01-Apr-11,Laundry services,Estates & Facilities,SUNLIGHT SERVICE GROUP LTD,722585,35037.05,
Department of Health,University Hospitals of Morecambe Bay NHS Foundation Trust,05-Apr-11,Maintenance Contract,Estates & Facilities,CMI HEALTHCARE SERVICES LTD,727538,27631.2,
Department of Health,University Hospitals of Morecambe Bay NHS Foundation Trust,05-Apr-11,Agency Medical Staff,Trust Wide,DRC LOCUMS LIMITED,730222,78967.76,
Department of Health,University Hospitals of Morecambe Bay NHS Foundation Trust,06-Apr-11,Speech & language therapy contract,Trust Wide,CUMBRIA PRIMARY CARE TRUST,711020,27132,
Department of Health,University Hospitals of Morecambe Bay NHS Foundation Trust,06-Apr-11,Speech & language therapy contract,Trust Wide,CUMBRIA PRIMARY CARE TRUST,726073,27132,
Department of Health,University Hospitals of Morecambe Bay NHS Foundation Trust,06-Apr-11,Prescription Recharges,Pharmacy,NHS BUSINESS SERVICES AUTHORITY,726591,289139.23,
Department of Health,University Hospitals of Morecambe Bay NHS Foundation Trust,06-Apr-11,NHS Product Sales,Trust Wide,NHS SUPPLY CHAIN,726585,124224.56,
Department of Health,University Hospitals of Morecambe Bay NHS Foundation Trust,06-Apr-11,NHS Product Sales,Trust Wide,NHS SUPPLY CHAIN,728126,120559.63,
Department of Health,University Hospitals of Morecambe Bay NHS Foundation Trust,06-Apr-11,NHS Product Sales,Trust Wide,NHS SUPPLY CHAIN,730193,90510.88,
Department of Health,University Hospitals of Morecambe Bay NHS Foundation Trust,06-Apr-11,Agency Medical Staff,Trust Wide,DRC LOCUMS LIMITED,730455,109276.82,
Department of Health,University Hospitals of Morecambe Bay NHS Foundation Trust,06-Apr-11,Engineering Services,Capital Services,EDWARD DEWHURST LTD,728599,88486.43,
Department of Health,University Hospitals of Morecambe Bay NHS Foundation Trust,06-Apr-11,Construction services,Capital Services,PININGTON CONSTRUCTION,722348,-51900.6
Department of Health,University Hospitals of Morecambe Bay NHS Foundation Trust,06-Apr-11,Construction services,Capital Services,PININGTON CONSTRUCTION,728559,67773
Department of Health,University Hospitals of Morecambe Bay NHS Foundation Trust,06-Apr-11,Construction services,Capital Services,PININGTON CONSTRUCTION,728561,42117.55
Department of Health,University Hospitals of Morecambe Bay NHS Foundation Trust,06-Apr-11,Drugs,Pharmacy,ROCHE PRODUCTS LTD,725001,49590.6
Department of Health,University Hospitals of Morecambe Bay NHS Foundation Trust,08-Apr-11,Medical Equipment,Radiology,CARESTREAM HEALTH UK LTD,727685,241733.88
Department of Health,University Hospitals of Morecambe Bay NHS Foundation Trust,12-Apr-11,Engineering Services,Capital Services,THE JAMES MERCER GROUP LIMITED,727362,213000.28
Department of Health,University Hospitals of Morecambe Bay NHS Foundation Trust,13-Apr-11,Speech & language therapy contract,Trust Wide,CUMBRIA PRIMARY CARE TRUST,675958,36162.4
Department of Health,University Hospitals of Morecambe Bay NHS Foundation Trust,13-Apr-11,Speech & language therapy contract,Trust Wide,CUMBRIA PRIMARY CARE TRUST,730965,-28000
Department of Health,University Hospitals of Morecambe Bay NHS Foundation Trust,13-Apr-11,Blood & Blood components contract,Core Clinical,NHS BLOOD & TRANSPLANT,730241,30249.36
Department of Health,University Hospitals of Morecambe Bay NHS Foundation Trust,13-Apr-11,Blood & Blood components contract,Core Clinical,NHS BLOOD & TRANSPLANT,730247,70319.97
Department of Health,University Hospitals of Morecambe Bay NHS Foundation Trust,13-Apr-11,Blood & Blood components contract,Core Clinical,NHS BLOOD & TRANSPLANT,730248,57130.06
Department of Health,University Hospitals of Morecambe Bay NHS Foundation Trust,13-Apr-11,GP Trainee recharge,Trust Wide,NHS NORTH LANCASHIRE,731489,93784.21
Department of Health,University Hospitals of Morecambe Bay NHS Foundation Trust,13-Apr-11,Electricity,Estates & Facilities,E.ON ENERGY,731771,55163.15
Department of Health,University Hospitals of Morecambe Bay NHS Foundation Trust,13-Apr-11,Electricity Charges,Estates & Facilities,NPOWER,731776,45000.65
Department of Health,University Hospitals of Morecambe Bay NHS Foundation Trust,13-Apr-11,Electricity Charges,Estates & Facilities,NPOWER,731778,48678.1
Department of Health,University Hospitals of Morecambe Bay NHS Foundation Trust,18-Apr-11,Drugs,Pharmacy,NOVARTIS PHARMACEUTICALS UK LTD,727244,27309.74
Department of Health,University Hospitals of Morecambe Bay NHS Foundation Trust,20-Apr-11,NHS Product Sales,Trust Wide,NHS SUPPLY CHAIN,731526,139144.96
Department of Health,University Hospitals of Morecambe Bay NHS Foundation Trust,20-Apr-11,NHS Product Sales,Trust Wide,NHS SUPPLY CHAIN,732912,159245.07
Department of Health,University Hospitals of Morecambe Bay NHS Foundation Trust,20-Apr-11,Maintenance Contract,Radiology,NHS SUPPLY CHAIN,732914,63600.96
Department of Health,University Hospitals of Morecambe Bay NHS Foundation Trust,20-Apr-11,Recharge Specialist Registrars,Trust Wide,THE PENNINE ACUTE HOSPITALS NHS TRUST,729788,100000
Department of Health,University Hospitals of Morecambe Bay NHS Foundation Trust,20-Apr-11,Recharge Specialist Registrars,Trust Wide,THE PENNINE ACUTE HOSPITALS NHS TRUST,729789,350000
Department of Health,University Hospitals of Morecambe Bay NHS Foundation Trust,21-Apr-11,IT Equipment,Capital Services,CAPITA IT SERVICES,730445,125043.91
Department of Health,University Hospitals of Morecambe Bay NHS Foundation Trust,21-Apr-11,IT Equipment,Capital Services,CAPITA IT SERVICES,730446,57338.4
Department of Health,University Hospitals of Morecambe Bay NHS Foundation Trust,26-Apr-11,Rates,Estates & Facilities,BOROUGH OF BARROW-IN-FURNESS,733776,64847.8
Department of Health,University Hospitals of Morecambe Bay NHS Foundation Trust,26-Apr-11,Orthotics Service,Trust Wide,CRISPIN ORTHOTICS LTD,729521,25737.8
Department of Health,University Hospitals of Morecambe Bay NHS Foundation Trust,26-Apr-11,Electricity,Estates & Facilities,E.ON ENERGY,733876,43324.93
Department of Health,University Hospitals of Morecambe Bay NHS Foundation Trust,26-Apr-11,Engineering Services,Capital Services,EDWARD DEWHURST LTD,730449,155614.95
Department of Health,University Hospitals of Morecambe Bay NHS Foundation Trust,26-Apr-11,Rates,Estates & Facilities,LANCASTER CITY COUNCIL,733741,55857
Department of Health,University Hospitals of Morecambe Bay NHS Foundation Trust,26-Apr-11,Maintenance Contract,Radiology,MAS MEDICAL LTD,731746,32483
Department of Health,University Hospitals of Morecambe Bay NHS Foundation Trust,26-Apr-11,Drugs,Pharmacy,ROCHE PRODUCTS LTD,729081,29335.2
Department of Health,University Hospitals of Morecambe Bay NHS Foundation Trust,26-Apr-11,Rates,Estates & Facilities,SOUTH LAKELAND DISTRICT COUNCIL,733822,38325
Department of Health,University Hospitals of Morecambe Bay NHS Foundation Trust,26-Apr-11,Water charges,Estates & Facilities,UNITED UTILITIES WATER LIMITED,733866,28837.87
